bitfinex/quotes_BTCUSD_20240727
["timestamp","ask_amount","ask_price","bid_price","bid_amount"]
[1722093183473,1.283496,68952.0,68951.0,0.010976]
[1722093183789,0.99044,68952.0,68951.0,0.010976]
[1722093183969,0.93834,68952.0,68951.0,0.010976]
[1722093184183,0.570084,68952.0,68951.0,0.010976]
[1722093184417,0.86014,68952.0,68951.0,0.010976]
[1722093184799,0.547084,68952.0,68951.0,0.010976]
[1722093186188,0.83714,68952.0,68951.0,0.010976]
[1722093186388,1.150196,68952.0,68951.0,0.010976]
[1722093186728,1.216096,68952.0,68951.0,0.010976]
[1722093187063,1.506152,68952.0,68951.0,0.010976]
[1722093187779,1.875808,68952.0,68951.0,0.010976]
[1722093187983,1.843552,68952.0,68951.0,0.010976]
[1722093188183,1.015343,68942.0,68941.0,0.002]
[1722093188387,1.831741,68942.0,68941.0,0.002]
[1722093189831,1.283843,68942.0,68941.0,0.002]
[1722093190453,1.138343,68942.0,68941.0,0.002]
[1722093190684,1.147343,68942.0,68941.0,0.002]
[1722093190796,0.857245,68942.0,68941.0,0.002]
[1722093191398,0.9429695,68942.0,68941.0,0.002]
[1722093191599,1.2330675,68942.0,68941.0,0.002]
[1722093192001,1.147343,68942.0,68941.0,0.002]
[1722093192209,0.579147,68942.0,68941.0,0.002]
[1722093192437,0.869245,68942.0,68941.0,0.002]
[1722093192715,0.266049,68942.0,68941.0,0.002]
[1722093192864,0.121,68942.0,68941.0,0.002]
[1722093193412,0.121,68942.0,68941.0,0.01190808]
[1722093193552,0.021,68942.0,68941.0,0.01190808]
[1722093193753,0.021,68942.0,68941.0,0.15695908]
[1722093193952,0.166049,68942.0,68941.0,0.01190808]
[1722093194529,0.166049,68942.0,68941.0,0.808257]
[1722093194530,0.021,68942.0,68941.0,0.808257]
[1722093194711,0.145025,68954.0,68944.0,0.290086]
[1722093194937,0.29004,68956.0,68944.0,0.290086]
[1722093195067,0.0015542,68953.0,68948.0,0.145036]
[1722093195271,0.0015542,68953.0,68949.0,0.00988996]
[1722093195470,0.145032,68950.0,68949.0,0.00988996]
[1722093195671,0.0015542,68954.0,68941.0,0.081]
[1722093195672,0.0015542,68954.0,68943.0,0.290093]
[1722093195877,0.145021,68956.0,68949.0,0.15514477]
[1722093196074,0.14606527,68954.0,68948.0,0.145036]
[1722093196315,0.14606527,68954.0,68945.0,0.290086]
[1722093196316,0.1,68953.0,68950.0,0.01009915]
[1722093196520,0.00084,68961.0,68944.0,0.0371093]
[1722093196521,0.00084,68961.0,68951.0,0.1422]
[1722093196693,0.00084,68961.0,68952.0,0.12053425]
[1722093196894,0.00084,68961.0,68953.0,0.12053425]
[1722093197097,0.00084,68961.0,68954.0,0.12053425]
[1722093197353,0.00084,68961.0,68953.0,0.01009627]
[1722093197354,0.00084,68961.0,68960.0,0.722057]
[1722093197579,0.00084,68961.0,68960.0,0.55256825]
[1722093197696,0.00084,68961.0,68960.0,0.42064678]
[1722093197890,0.00084,68961.0,68960.0,0.27563478]
[1722093198116,0.00084,68961.0,68960.0,0.56565778]
[1722093198317,0.00084,68961.0,68960.0,0.13062378]
[1722093198693,0.435867,68961.0,68960.0,0.13062378]
[1722093198861,0.435867,68961.0,68960.0,0.01008953]
[1722093199063,0.145024,68954.0,68949.0,0.008]
[1722093199265,0.00084,68961.0,68952.0,0.130548]
[1722093199414,0.00084,68961.0,68953.0,0.1205341]
[1722093199615,0.00084,68961.0,68954.0,0.1205341]
[1722093199616,0.290032,68958.0,68954.0,0.1205341]
[1722093199819,0.435062,68956.0,68955.0,0.1205341]
[1722093200025,0.435062,68956.0,68955.0,0.13054511]
[1722093200423,0.145014,68959.0,68955.0,0.01001101]
[1722093200628,0.145018,68957.0,68956.0,0.12053699]
[1722093200829,0.00184,68961.0,68956.0,0.16151349]
[1722093201031,0.145012,68960.0,68957.0,0.12053699]
[1722093201266,0.00184,68961.0,68960.0,0.145011]
[1722093201489,0.00184,68961.0,68960.0,0.56553784]
[1722093201643,0.00184,68961.0,68960.0,0.36107232]
[1722093201857,0.00184,68961.0,68960.0,0.00996685]
[1722093202059,0.00184,68961.0,68960.0,0.12052218]
[1722093202266,0.00184,68961.0,68960.0,0.13048903]
[1722093202640,0.00184,68961.0,68960.0,0.42051203]
[1722093202818,0.00184,68961.0,68960.0,1.28776903]
[1722093202967,0.00184,68961.0,68960.0,1.59426702]
[1722093203172,0.74066972,68992.0,68972.0,0.289969]
[1722093203374,0.45077872,68992.0,68973.0,0.26272218]
[1722093203577,0.289887,68993.0,68976.0,0.289953]
[1722093203778,0.289884,68994.0,68977.0,0.5313764]
[1722093204004,0.289828,69007.0,68985.0,0.144958]
[1722093204005,0.144946,68991.0,68985.0,0.144958]
[1722093204173,0.144949,68990.0,68986.0,0.12052218]
[1722093204515,0.144949,68990.0,68987.0,0.12052218]
[1722093204727,0.289889,68992.0,68988.0,0.11847378]
[1722093204728,0.144951,68989.0,68988.0,0.11847378]
[1722093204870,0.289894,68991.0,68988.0,0.00998493]
[1722093204871,0.289892,68991.0,68988.0,0.00998493]
[1722093205075,0.289892,68991.0,68982.0,0.28993]
[1722093205076,0.14495,68989.0,68984.0,0.14496]
[1722093205277,0.434848,68990.0,68989.0,0.00998396]
[1722093205556,0.1,68998.0,68978.0,0.144972]
[1722093205724,0.144959,68985.0,68979.0,0.23568943]
[1722093205863,0.289911,68987.0,68980.0,0.144968]
[1722093205864,0.144957,68986.0,68980.0,0.144968]
[1722093206066,0.144953,68988.0,68981.0,0.00999166]
[1722093206290,0.1,69001.0,68982.0,0.289929]
[1722093206291,0.289888,68993.0,68982.0,0.289929]
[1722093206483,0.289888,68992.0,68984.0,0.144961]
[1722093206724,0.289888,68992.0,68985.0,0.008]
[1722093206725,0.14495,68989.0,68985.0,0.008]
[1722093206925,0.144949,68990.0,68985.0,0.00998781]
[1722093207335,0.144949,68990.0,68984.0,0.14496]
[1722093207589,0.14495,68989.0,68986.0,0.00998685]
[1722093207791,0.1,68998.0,68988.0,0.1429]
[1722093207966,0.289833,69006.0,68988.0,0.1429]
[1722093208323,0.002,69019.0,68989.0,0.00994084]
[1722093208529,0.07512979,69013.0,68990.0,0.07446538]
[1722093208692,0.058108,69012.0,68990.0,0.07446538]
[1722093209041,0.144934,68997.0,68991.0,0.15488391]
[1722093209312,0.144931,68999.0,68991.0,0.00993891]
[1722093209548,0.144928,69000.0,68994.0,0.144939]
[1722093209719,0.14493,68999.0,68993.0,0.144941]
[1722093209919,0.1,69008.0,68995.0,0.00993507]
[1722093210122,0.14493,68999.0,68996.0,0.03160326]
[1722093210328,0.144925,69001.0,68996.0,0.0099341]
[1722093210550,0.144927,69000.0,68996.0,0.0099341]
[1722093210682,0.144927,69000.0,68995.0,0.144937]
[1722093210882,0.289852,69001.0,68997.0,0.00993314]
[1722093211085,0.1,69008.0,68996.0,0.0099341]
[1722093211319,0.144938,68995.0,68990.0,0.001]
[1722093211494,0.289842,69003.0,68990.0,0.145947]
[1722093211691,0.144944,68992.0,68991.0,0.0868666]
[1722093211890,0.144944,68992.0,68990.0,0.001]
[1722093212094,0.144946,68991.0,68990.0,0.001]
[1722093212341,0.1,69002.0,68988.0,0.1429]
[1722093212480,0.289867,68997.0,68988.0,0.1429]
[1722093212682,0.289901,68989.0,68982.0,0.065]
[1722093212927,0.724677,68996.0,68995.0,0.001]
[1722093213238,1.014548,68996.0,68995.0,0.001]
[1722093213817,1.114548,68996.0,68995.0,0.001]
[1722093214181,0.144973,68978.0,68977.0,0.065]
[1722093214313,0.289895,68991.0,68975.0,0.0779]
[1722093214314,0.144977,68976.0,68975.0,0.0779]
[1722093214511,0.144976,68977.0,68975.0,0.0779]
[1722093214735,0.29178056,68981.0,68976.0,0.01429]
[1722093214970,0.144972,68979.0,68976.0,0.01429]
[1722093215271,0.289939,68980.0,68976.0,0.01429]
[1722093215507,0.144974,68978.0,68976.0,0.01429]
[1722093215862,0.144975,68977.0,68976.0,0.01429]
[1722093216364,0.144975,68977.0,68975.0,0.0919]
[1722093216365,0.144977,68976.0,68975.0,0.014]
[1722093216546,0.434932,68976.0,68975.0,0.014]
[1722093216901,0.724887,68976.0,68975.0,0.014]
[1722093217433,0.289955,68976.0,68968.0,0.0779]
[1722093217652,0.289955,68976.0,68969.0,0.0577901]
[1722093217862,0.144987,68972.0,68969.0,0.0577901]
[1722093218100,0.144983,68974.0,68969.0,0.0577901]
[1722093218448,0.144983,68974.0,68969.0,0.2027821]
[1722093218623,0.001,68976.0,68972.0,0.144986]
[1722093218921,0.289942,68980.0,68973.0,0.144983]
[1722093219139,0.00184356,68981.0,68971.0,0.144987]
[1722093219261,0.001,68972.0,68971.0,0.144987]
[1722093219466,0.001,68972.0,68970.0,0.144989]
[1722093219665,0.001,68972.0,68969.0,0.004]
[1722093220222,0.001,68972.0,68971.0,0.144988]
[1722093220360,0.001,68972.0,68969.0,0.004]
[1722093220361,0.001,68972.0,68969.0,0.148992]
[1722093220560,0.001,68972.0,68970.0,0.14499]
[1722093220767,0.289958,68976.0,68971.0,0.004]
[1722093220768,0.14498,68975.0,68971.0,0.004]
[1722093220976,0.289941,68980.0,68971.0,0.004]
[1722093221231,0.144974,68978.0,68973.0,0.144983]
[1722093221459,0.001,68976.0,68972.0,0.02469]
[1722093221597,0.144978,68976.0,68971.0,0.148987]
[1722093221801,0.289953,68977.0,68971.0,0.144987]
[1722093222012,0.001,68975.0,68972.0,0.144985]
[1722093222213,0.001,68975.0,68974.0,0.144982]
[1722093222412,0.00084,68976.0,68975.0,0.14498]
[1722093222661,0.00084,68976.0,68975.0,0.7249]
[1722093223085,0.00084,68976.0,68975.0,1.07986]
[1722093223204,0.00084,68976.0,68975.0,1.27824784]
[1722093223604,0.00084,68976.0,68975.0,1.15776]
[1722093223805,0.0015542,68993.0,68987.0,0.065]
[1722093224011,0.14494,68994.0,68989.0,0.222848]
[1722093224207,0.144943,68993.0,68989.0,0.0779]
[1722093224433,0.28986,68999.0,68989.0,0.0779]
[1722093224635,0.144938,68995.0,68990.0,0.01429]
[1722093225055,0.289853,69001.0,68991.0,0.144945]
[1722093225240,0.144934,68997.0,68991.0,0.144945]
[1722093225442,0.144934,68997.0,68966.0,0.04411349]
[1722093225443,0.1442,68996.0,68977.0,0.065]
[1722093225640,0.289916,68986.0,68979.0,0.14497]
[1722093225812,0.144962,68984.0,68979.0,0.14497]
[1722093226016,0.001,68993.0,68980.0,0.18493677]
[1722093226253,0.289908,68988.0,68981.0,0.26544964]
[1722093226477,0.1465092,68987.0,68982.0,0.12048364]
[1722093226687,0.0015542,68987.0,68980.0,0.06445125]
[1722093226876,0.0015542,68987.0,68981.0,0.16319616]
[1722093227120,0.290888,68993.0,68981.0,0.04271237]
[1722093227331,0.144958,68986.0,68981.0,0.04271237]
[1722093227619,0.289898,68990.0,68982.0,0.12048406]
[1722093227824,0.289893,68991.0,68982.0,0.05426234]
[1722093228000,0.144951,68989.0,68984.0,0.14496]
[1722093228203,0.289893,68991.0,68985.0,0.12048269]
[1722093228204,0.0015542,68990.0,68985.0,0.12048269]
[1722093228413,0.0015542,68990.0,68981.0,0.144966]
[1722093228414,0.1,68995.0,68977.0,0.065]
[1722093228585,0.15989383,68984.0,68981.0,0.007]
[1722093228780,0.15989383,68984.0,68982.0,0.12048125]
[1722093228781,0.367626,68983.0,68982.0,0.12048125]
[1722093229024,0.367626,68983.0,68981.0,0.007]
[1722093229025,1.014755,68982.0,68981.0,0.007]
[1722093229228,0.28993,68982.0,68970.0,0.207689]
[1722093229545,0.289944,68979.0,68972.0,0.144985]
[1722093229739,0.144979,68976.0,68973.0,0.12049859]
[1722093230086,0.0777,68983.0,68981.0,0.011]
[1722093230087,0.434895,68982.0,68981.0,0.011]
[1722093230300,0.434895,68982.0,68974.0,0.03878569]
[1722093230301,0.43494,68975.0,68974.0,0.03878569]
[1722093230504,0.0777,68983.0,68974.0,0.00989911]
[1722093230505,0.28995,68978.0,68974.0,0.00989911]
[1722093230716,0.43494,68975.0,68974.0,0.00989911]
[1722093230918,0.434964,68971.0,68970.0,0.011]
[1722093231071,0.434964,68971.0,68970.0,0.13150713]
[1722093231417,0.434964,68971.0,68970.0,0.14142347]
[1722093231716,0.72494,68971.0,68970.0,0.13042347]
[1722093232236,1.014916,68971.0,68970.0,0.12050713]
[1722093232452,0.72494,68971.0,68970.0,0.12050713]
[1722093232628,1.014916,68971.0,68970.0,0.12050713]
[1722093233191,0.72494,68971.0,68970.0,0.12050713]
[1722093233389,0.435964,68971.0,68970.0,0.14355784]
[1722093233795,0.435964,68971.0,68970.0,0.14355923]
[1722093233997,0.436964,68971.0,68970.0,0.15055923]
[1722093234239,0.435964,68971.0,68970.0,0.14355923]
[1722093234376,0.435964,68971.0,68970.0,0.15347981]
[1722093234593,0.435964,68971.0,68970.0,0.1414291]
[1722093234817,0.146988,68971.0,68970.0,0.1484291]
[1722093235019,0.436964,68971.0,68970.0,0.1484291]
[1722093235404,0.146988,68971.0,68970.0,0.1484291]
[1722093235834,0.145988,68971.0,68970.0,0.12750852]
[1722093236024,0.145988,68971.0,68970.0,0.1374291]
[1722093236221,0.435964,68971.0,68970.0,0.1374291]
[1722093236436,0.434964,68971.0,68970.0,0.12450852]
[1722093236834,0.144988,68971.0,68970.0,0.1304291]
[1722093237034,0.145988,68971.0,68970.0,0.13742505]
[1722093237457,0.002,68971.0,68970.0,0.17266736]
[1722093237606,0.002,68971.0,68970.0,0.32765736]
[1722093237607,0.003,68971.0,68970.0,0.32765736]
[1722093237826,0.003,68971.0,68970.0,0.18266736]
[1722093238275,0.003,68971.0,68970.0,0.32765736]
[1722093238477,0.001,68971.0,68970.0,0.31065736]
[1722093238903,0.001,68971.0,68970.0,1.24330036]
[1722093239082,0.001,68971.0,68970.0,1.31860036]
[1722093239225,0.001,68971.0,68970.0,1.49933178]
[1722093239431,0.001,68971.0,68970.0,1.82105443]
[1722093239782,0.144957,68986.0,68981.0,0.144966]
[1722093239981,0.001,68971.0,68970.0,0.61813389]
[1722093240220,0.001,68971.0,68970.0,1.55780365]
[1722093240436,0.001,68971.0,68970.0,2.02003103]
[1722093240659,0.1,68991.0,68970.0,0.48251929]
[1722093240660,0.289934,68982.0,68970.0,0.48251929]
[1722093240866,0.144979,68976.0,68971.0,0.26546526]
[1722093241063,0.14498,68975.0,68972.0,0.12047726]
[1722093241272,0.144981,68975.0,68973.0,0.12047726]
[1722093241492,0.144981,68975.0,68974.0,0.12047726]
[1722093241642,0.43494,68975.0,68974.0,0.12047726]
[1722093242649,0.7249,68975.0,68974.0,0.12047726]
[1722093242850,0.43494,68975.0,68974.0,0.12047726]
[1722093243071,0.14498,68975.0,68974.0,0.13492499]
[1722093243272,0.14498,68975.0,68974.0,0.12047726]
[1722093243471,0.14498,68975.0,68974.0,0.13447726]
[1722093243472,0.43594,68975.0,68974.0,0.13447726]
[1722093243860,0.14598,68975.0,68974.0,0.13447726]
[1722093244274,0.43594,68975.0,68974.0,0.13447726]
[1722093244534,0.43594,68975.0,68974.0,0.14847726]
[1722093245971,0.14598,68975.0,68974.0,0.14847726]
[1722093246177,0.2185677,68975.0,68974.0,0.14847726]
[1722093246387,0.7984877,68975.0,68974.0,0.028]
[1722093246618,0.7984877,68975.0,68974.0,0.03791419]
[1722093246619,0.53594,68975.0,68974.0,0.03791419]
[1722093246818,0.53594,68975.0,68974.0,0.028]
[1722093246819,0.001,68975.0,68974.0,0.028]
[1722093247064,0.43594,68975.0,68974.0,0.028]
[1722093247484,0.90191356,68975.0,68974.0,0.014]
[1722093247740,1.25216,68975.0,68974.0,0.014]
[1722093247964,1.25916,68975.0,68974.0,0.015]
[1722093248365,1.25916,68975.0,68974.0,0.014]
[1722093248366,1.27516,68975.0,68974.0,0.014]
[1722093248571,0.29,68966.0,68958.0,0.45077872]
[1722093248795,0.29,68966.0,68946.0,1.37306]
[1722093248796,0.2363,68974.0,68949.0,0.4748]
[1722093248985,0.2363,68974.0,68950.0,0.26556272]
[1722093248986,0.145016,68958.0,68950.0,0.26556272]
[1722093249188,0.145019,68957.0,68951.0,0.12053172]
[1722093249487,0.145019,68957.0,68952.0,0.12053172]
[1722093249705,0.2363,68974.0,68949.0,0.4748]
[1722093250057,0.2363,68974.0,68950.0,0.12053213]
[1722093250259,0.2363,68974.0,68957.0,0.0769]
[1722093250405,0.144993,68969.0,68962.0,0.145006]
[1722093250568,0.144993,68969.0,68962.0,0.145007]
[1722093250773,0.144995,68968.0,68959.0,0.290025]
[1722093250980,0.2363,68974.0,68962.0,0.145007]
[1722093250981,0.1,68974.0,68962.0,0.145007]
[1722093251184,0.007,68975.0,68960.0,0.0719164]
[1722093251185,0.144994,68969.0,68960.0,0.0719164]
[1722093251401,0.1602,68978.0,68961.0,0.290018]
[1722093251664,0.144988,68971.0,68965.0,0.145]
[1722093251843,0.144993,68969.0,68962.0,0.04408344]
[1722093252042,0.144993,68969.0,68963.0,0.145004]
[1722093252242,0.1602,68978.0,68965.0,0.290001]
[1722093252443,0.1602,68978.0,68963.0,0.145004]
[1722093252444,0.289969,68973.0,68963.0,0.145004]
[1722093252622,0.289984,68970.0,68962.0,0.001]
[1722093252819,0.28996,68975.0,68962.0,0.001]
[1722093252820,0.144999,68966.0,68962.0,0.0522933]
[1722093253050,0.28996,68975.0,68962.0,0.001]
[1722093253250,0.003,68974.0,68962.0,0.001]
[1722093253451,0.144999,68966.0,68962.0,0.001]
[1722093253851,0.144999,68966.0,68962.0,0.005]
[1722093254070,0.1602,68978.0,68962.0,0.005]
[1722093254279,0.435015,68963.0,68962.0,0.005]
[1722093254439,0.289994,68967.0,68957.0,0.0769]
[1722093254649,0.145011,68961.0,68957.0,0.0769]
[1722093254839,0.435019,68963.0,68962.0,0.001]
[1722093255151,0.725033,68963.0,68962.0,0.001]
[1722093255350,0.289997,68966.0,68956.0,0.0622]
[1722093255597,0.290022,68961.0,68956.0,0.0622]
[1722093255809,0.290022,68961.0,68957.0,0.01743338]
[1722093255941,0.435046,68958.0,68957.0,0.02143338]
[1722093256137,0.435046,68958.0,68957.0,0.004]
[1722093256138,0.725077,68958.0,68957.0,0.004]
[1722093256970,0.435046,68958.0,68957.0,0.004]
[1722093258381,0.435046,68958.0,68949.0,0.619834]
[1722093258382,0.001,68963.0,68949.0,0.4748]
[1722093258587,0.001,68961.0,68956.0,0.011]
[1722093259009,0.001,68961.0,68960.0,0.145011]
[1722093259228,0.289993,68967.0,68960.0,0.207211]
[1722093259387,0.145004,68964.0,68961.0,0.02217415]
[1722093259586,0.0602,68974.0,68961.0,0.03959983]
[1722093259587,0.350165,68974.0,68961.0,0.03959983]
[1722093259792,0.289992,68968.0,68961.0,0.03959983]
[1722093259998,0.145001,68965.0,68961.0,0.03959983]
[1722093260555,0.145001,68965.0,68961.0,0.01742568]
[1722093260937,0.145004,68964.0,68961.0,0.01742568]
[1722093261142,0.145004,68964.0,68961.0,0.02742568]
[1722093261310,0.001,68965.0,68961.0,0.02742568]
[1722093261311,0.145005,68963.0,68961.0,0.02742568]
[1722093261679,0.146001,68965.0,68961.0,0.05857975]
[1722093262009,0.145001,68965.0,68961.0,0.04857975]
[1722093262214,0.1,68973.0,68961.0,0.05957975]
[1722093262419,0.001,68964.0,68962.0,0.145006]
[1722093262665,0.001,68964.0,68963.0,0.06337147]
[1722093262844,0.001,68964.0,68963.0,0.49838647]
[1722093263043,0.001,68964.0,68963.0,0.80584951]
[1722093263835,0.001,68964.0,68963.0,1.35546677]
[1722093264082,0.00084,68976.0,68963.0,0.34043177]
[1722093264309,0.00084,68976.0,68973.0,0.144983]
[1722093264513,0.00084,68976.0,68964.0,0.41051326]
[1722093264514,0.00084,68976.0,68974.0,0.144981]
[1722093264856,0.00084,68976.0,68974.0,0.01743186]
[1722093265952,0.00084,68976.0,68974.0,0.16241286]
[1722093266141,0.00084,68976.0,68974.0,0.01743186]
[1722093266350,0.00184,68976.0,68973.0,0.009]
[1722093266547,0.00184,68976.0,68973.0,0.153983]
[1722093266696,0.00184,68976.0,68974.0,0.01743186]
[1722093266897,0.00184,68976.0,68975.0,0.8642]
[1722093267314,0.00184,68976.0,68975.0,0.88162994]
[1722093267711,0.00184,68976.0,68975.0,1.29207311]
[1722093268166,0.00084,68976.0,68975.0,1.29207311]
[1722093268717,0.00084,68976.0,68975.0,1.29207098]
[1722093268859,0.00084,68976.0,68975.0,1.75663614]
[1722093269055,0.00084,68976.0,68975.0,1.7976398]
[1722093269483,0.00084,68976.0,68975.0,1.77063614]
[1722093270089,0.00084,68976.0,68975.0,1.75663614]
[1722093270681,0.00084,68976.0,68975.0,1.75863614]
[1722093271014,0.00084,68976.0,68975.0,2.04859614]
[1722093271222,0.00084,68976.0,68975.0,2.20936894]
[1722093271461,0.00084,68976.0,68975.0,2.27093654]
[1722093271658,0.00084,68976.0,68975.0,2.18415423]
[1722093271861,0.00084,68976.0,68975.0,2.1442396]
[1722093272063,0.00084,68976.0,68975.0,2.18411162]
[1722093272278,0.00084,68976.0,68975.0,1.90584317]
[1722093272487,0.00084,68976.0,68975.0,2.06810595]
[1722093272688,0.00084,68976.0,68975.0,1.87996062]
[1722093272842,0.00084,68976.0,68975.0,2.08233823]
[1722093273041,0.00084,68976.0,68975.0,2.40398288]
[1722093273443,0.00084,68976.0,68975.0,2.05412111]
[1722093273644,0.00084,68976.0,68975.0,1.8226073]
[1722093273846,0.00084,68976.0,68975.0,1.79560364]
[1722093274249,0.00084,68976.0,68975.0,1.83894554]
[1722093274457,0.00084,68976.0,68975.0,1.79560364]
[1722093275160,0.00084,68976.0,68975.0,1.79561199]
[1722093276549,0.00084,68976.0,68975.0,1.33039242]
[1722093278387,0.00084,68976.0,68975.0,1.20993553]
[1722093278542,0.00084,68976.0,68975.0,1.33040285]
[1722093279987,0.00084,68976.0,68975.0,1.33240285]
[1722093281567,0.00084,68976.0,68975.0,1.21193553]
[1722093281769,0.00084,68976.0,68975.0,1.33239608]
[1722093282218,0.00084,68976.0,68975.0,1.25379608]
[1722093282345,0.00084,68976.0,68975.0,1.19109608]
[1722093282546,0.00084,68976.0,68975.0,1.18227964]
[1722093284898,0.00084,68976.0,68975.0,1.06181909]
[1722093285110,0.00084,68976.0,68975.0,0.7475135]
[1722093286167,0.00084,68976.0,68975.0,0.7335135]
[1722093286342,0.00084,68976.0,68975.0,1.0234735]
[1722093286540,0.00084,68976.0,68975.0,1.0374735]
[1722093287079,0.00084,68976.0,68975.0,0.4575535]
[1722093287431,0.00084,68976.0,68975.0,0.82426593]
[1722093288004,0.00084,68976.0,68975.0,0.7475135]
[1722093288435,0.00084,68976.0,68975.0,0.86799258]
[1722093290188,0.14824,68976.0,68975.0,0.28807258]
[1722093290413,0.14824,68976.0,68975.0,0.14309258]
[1722093290687,0.14824,68976.0,68975.0,0.0226135]
[1722093291923,0.293217,68976.0,68975.0,0.0226135]
[1722093292089,0.583172,68976.0,68975.0,0.0226135]
[1722093292328,0.583172,68976.0,68974.0,0.0108635]
[1722093292329,0.7249,68975.0,68974.0,0.0108635]
[1722093292455,0.43494,68975.0,68974.0,0.0108635]
[1722093292656,1.01486,68975.0,68974.0,0.0108635]
[1722093292855,1.01486,68975.0,68974.0,0.01807945]
[1722093293041,1.01486,68975.0,68974.0,0.0108635]
[1722093293438,0.7249,68975.0,68974.0,0.0108635]
[1722093293664,0.7264542,68975.0,68974.0,0.0108635]
[1722093293887,0.4364942,68975.0,68974.0,0.0108635]
[1722093294399,0.0015542,68975.0,68974.0,0.0108635]
[1722093294595,0.02431006,68975.0,68974.0,0.04094805]
[1722093294811,0.02431006,68975.0,68974.0,0.01749977]
[1722093294976,0.0015542,68975.0,68974.0,0.01749977]
[1722093295344,0.0015542,68975.0,68974.0,0.16248177]
[1722093295545,0.0015542,68975.0,68974.0,0.01749977]
[1722093295997,0.0015542,68975.0,68974.0,0.00663627]
[1722093296781,0.0015542,68975.0,68973.0,0.144984]
[1722093297030,0.0015542,68975.0,68974.0,0.02009405]
[1722093297389,0.14824,68976.0,68974.0,0.00609405]
[1722093297773,0.001,68975.0,68974.0,0.01109405]
[1722093297972,0.001,68975.0,68974.0,0.15607605]
[1722093298378,0.02375521,68975.0,68974.0,0.01109405]
[1722093298580,0.001,68975.0,68974.0,0.01109405]
[1722093298782,0.14824,68976.0,68974.0,0.15107605]
[1722093298964,0.14824,68976.0,68975.0,0.14498]
[1722093299171,0.00084,68976.0,68975.0,0.44103309]
[1722093299412,0.00084,68976.0,68975.0,1.02095309]
[1722093300018,0.00084,68976.0,68975.0,0.73099309]
[1722093300454,0.00084,68976.0,68975.0,0.44103309]
[1722093300663,0.00084,68976.0,68975.0,0.45503309]
[1722093301268,0.00084,68976.0,68975.0,0.16507309]
[1722093301473,0.14824,68976.0,68975.0,0.02009309]
[1722093301878,0.14824,68976.0,68975.0,0.014]
[1722093301879,0.17199434,68976.0,68975.0,0.014]
[1722093302070,0.17199434,68976.0,68975.0,0.02009309]
[1722093302253,0.14924,68976.0,68975.0,0.02009309]
[1722093302448,0.17099492,68976.0,68975.0,0.02009309]
[1722093302894,0.14924,68976.0,68975.0,0.51144613]
[1722093303131,0.14924,68976.0,68975.0,0.22148613]
[1722093303349,0.00184,68976.0,68975.0,0.75499309]
[1722093303519,0.00184,68976.0,68975.0,1.16543836]
[1722093304196,0.00184,68976.0,68975.0,1.04495309]
[1722093304385,0.00184,68976.0,68975.0,1.16543653]
[1722093304586,0.00184,68976.0,68975.0,1.28288832]
[1722093304991,0.00084,68976.0,68975.0,1.25888832]
[1722093305432,0.00184,68976.0,68975.0,1.28588832]
[1722093305841,0.02459255,68976.0,68975.0,1.28588832]
[1722093306389,0.02459255,68976.0,68975.0,1.57584832]
[1722093306813,0.00184,68976.0,68975.0,1.57584832]
[1722093307213,0.00184,68976.0,68975.0,0.87847653]
[1722093307436,0.00184,68976.0,68975.0,0.58851821]
[1722093307636,0.00184,68976.0,68975.0,0.87847821]
[1722093307989,0.00184,68976.0,68975.0,0.75799309]
[1722093308195,0.00184,68976.0,68975.0,0.74399309]
[1722093308440,0.00184,68976.0,68975.0,0.01909309]
[1722093308638,0.00184,68976.0,68975.0,0.16407309]
[1722093308841,0.00184,68976.0,68975.0,0.45403309]
[1722093309047,0.00184,68976.0,68975.0,0.46803309]
[1722093309249,0.00184,68976.0,68975.0,0.03309309]
[1722093309423,0.146817,68976.0,68975.0,0.03309309]
[1722093309629,0.145817,68976.0,68975.0,0.02009309]
[1722093310164,0.16857117,68976.0,68975.0,0.02009309]
[1722093310370,0.16857117,68976.0,68975.0,0.03209309]
[1722093310621,0.16857117,68976.0,68975.0,0.026]
[1722093310622,0.60712617,68976.0,68975.0,0.026]
[1722093310823,0.60712617,68976.0,68975.0,0.014]
[1722093310824,0.89708117,68976.0,68975.0,0.014]
[1722093311020,0.89708117,68976.0,68968.0,0.00973808]
[1722093311021,0.144986,68972.0,68968.0,0.00973808]
[1722093311322,0.144984,68973.0,68968.0,0.15473208]
[1722093311524,0.144984,68973.0,68969.0,0.00665503]
[1722093311658,0.289967,68974.0,68969.0,0.00665503]
[1722093311859,0.873552,68970.0,68969.0,0.00665503]
[1722093312059,0.29359,68970.0,68968.0,0.00973808]
[1722093312282,0.144992,68969.0,68968.0,0.00973808]
[1722093312553,0.1486,68970.0,68968.0,0.00973808]
[1722093313070,0.17135571,68970.0,68968.0,0.00973808]
[1722093313270,0.0654,68975.0,68969.0,0.33445851]
[1722093313503,0.0654,68975.0,68970.0,0.289978]
[1722093313704,0.0654,68975.0,68971.0,0.144988]
[1722093314124,0.0654,68975.0,68972.0,0.144984]
[1722093314416,0.08815538,68975.0,68972.0,0.144984]
[1722093314646,0.08815538,68975.0,68973.0,0.04991736]
[1722093315058,0.08970958,68975.0,68973.0,0.19490136]
[1722093315255,0.08970958,68975.0,68972.0,0.144985]
[1722093315584,0.08815538,68975.0,68971.0,0.148988]
[1722093315786,0.08815538,68975.0,68972.0,0.144986]
[1722093315974,0.08815538,68975.0,68971.0,0.004]
[1722093316294,0.144986,68972.0,68971.0,0.004]
[1722093316513,0.518158,68972.0,68971.0,0.004]
[1722093316694,0.87353,68972.0,68971.0,0.004]
[1722093316866,0.724962,68969.0,68968.0,0.00973808]
[1722093317047,0.724962,68969.0,68968.0,0.000924]
[1722093317048,1.014947,68969.0,68968.0,0.000924]